[Event "34th GER-ch Seniors-65 2022"]
[Site "Magdeburg"]
[Date "2022.08.20"]
[Round "9.11"]
[White "Braun, Gottfried"]
[Black "Zuehlke, Burkhard"]
[Result "1/2-1/2"]
[ECO "B08"]
[WhiteElo "2143"]
[BlackElo "1987"]
[Annotator "TA"]
[PlyCount "127"]
[EventDate "2022.08.12"]
[EventType "swiss"]
[EventCountry "GER"]
[SourceTitle "playchess.com"]
[Source "ChessBase"]
[SourceQuality "1"]
[TimeControl "40/5400+30:1800+30"]

{[%evp 22,127,12,6,11,0,3,0,-12,-3,0,-7,0,-7,-6,0,0,-2,0,-6,0,-7,16,19,20,17,18,5,14,0,0,0,0,0,0,0,0,0,0,0,0,0,0,0,0,0,0,0,0,0,0,0,8,0,0,0,4,0,0,0,0,0,0,0,0,0,0,0,0,0,8,2,27,9,12,11,10,12,14,14,23,0,0,0,0,0,0,0,0,0,0,0,0,0,0,0,0,0,0,0,0,0,0,0,0,0,0,0]} 1. e4 {[%emt 0:00:05]} d6 {[%emt 0:00:09]} 2. d4 {[%emt 0:00:08]} Nf6 {[%emt 0:00:08]} 3. Nc3 {[%emt 0:00:05]} g6 {[%emt 0:00:07]} 4. Nf3 {[%emt 0:00:05]} Bg7 {[%emt 0:00:11]} 5. Be2 {[%emt 0:00:06]} O-O {[%emt 0:00:09]} 6. O-O {[%emt 0:00:04]} Bg4 {[%emt 0:00:21]} 7. Be3 {[%emt 0:00:25]} Nc6 {[%emt 0:00:48]} 8. Qd2 {[%emt 0:02:16]} e5 {[%emt 0:01:44]} 9. dxe5 {[%emt 0:00:15]} dxe5 {[%emt 0:00:28]} 10. Rad1 {[%emt 0:00:13]} Qc8 {[%emt 0:03:23]} 11. Qc1 {[%emt 0:01:53]} Rd8 {[%emt 0:09:18]} 12. Rxd8+ {[%emt 0:00:31]} Nxd8 {[%emt 0:01:20] B08: Pirc Defence: Classical System.} 13. Rd1 {[%emt 0:03:15]} Ne6 {[%emt 0:09:12]} 14. h3 {[%emt 0:04:14]} Bxf3 {[%emt 0:00:28]} 15. Bxf3 {[%emt 0:00:11]} c6 {[%emt 0:04:25]} 16. Nb1 {[%emt 0:02:38]} Qc7 {[%emt 0:04:56]} 17. c3 {[%emt 0:01:30]} Bf8 {[%emt 0:07:11]} 18. Nd2 {[%emt 0:04:19] [#]} Rd8 $146 {[%emt 0:01:19]} ({Predecessor:} 18... Bc5 19. Bxc5 Nxc5 20. Nc4 Ne6 21. a4 {½-½ (21) Unzicker,W (2480)-Hauchard,A (2425) Bad Wildbad 1990}) 19. Nb3 {[%emt 0:00:54]} ({But not} 19. Bxa7 $2 b6 20. Bxb6 Qxb6 $19) 19... b6 {[%emt 0:01:13]} 20. Rd2 {[%emt 0:03:23]} Rxd2 {[%emt 0:06:22]} 21. Qxd2 {[%emt 0:00:11]} Qd6 {[%emt 0:00:20]} 22. Qxd6 {[%emt 0:00:32]} Bxd6 {[%emt 0:00:06]} 23. a4 {[%emt 0:01:56][%cal Ba2a4,Ba4a5][%mdl 32]} h5 {[%emt 0:11:03]} 24. a5 {[%emt 0:02:17]} Nd7 {[%emt 0:00:33]} 25. Nd2 {[%emt 0:05:15]} Bc5 {[%emt 0:01:42]} 26. Bxc5 {[%emt 0:01:16]} Nexc5 {[%emt 0:00:29]} 27. axb6 {[%emt 0:00:52]} axb6 $11 {[%emt 0:00:10][%mdl 4096] Endgame KBN-KNN} 28. Bd1 {[%emt 0:01:40] Against Na4} Kf8 {[%emt 0:07:38]} 29. Kf1 {[%emt 0:01:52]} Ke7 {[%emt 0:00:22]} 30. Ke2 {[%emt 0:02:40]} Ne6 {[%emt 0:02:55]} 31. h4 {[%emt 0:05:02]} b5 {[%emt 0:03:13]} 32. Ke3 {[%emt 0:01:30]} Nc7 {[%emt 0:01:00]} 33. b4 {[%emt 0:08:46]} Ne6 {[%emt 0:01:00]} 34. g3 {[%emt 0:02:33]} Nb6 {[%emt 0:01:22]} 35. Bb3 {[%emt 0:06:43]} Nd7 {[%emt 0:02:09]} 36. Nf3 {[%emt 0:06:36]} Kf6 {[%emt 0:02:43]} 37. c4 {[%emt 0:02:01]} bxc4 {[%emt 0:00:59]} 38. Bxc4 {[%emt 0:00:07]} Ke7 {[%emt 0:00:47]} 39. Kd3 {[%emt 0:03:58]} f6 {[%emt 0:01:26]} 40. Kc3 {[%emt 0:00:40]} Nb6 {[%emt 0:00:59]} 41. Bb3 {[%emt 0:32:37]} Nc8 {[%emt 0:32:16]} 42. Ba4 {[%emt 0:04:32]} Kd6 {[%emt 0:00:44]} 43. Nd2 {[%emt 0:00:17]} Nd4 {[%emt 0:03:30]} 44. Nc4+ {[%emt 0:02:18]} Kd7 {[%emt 0:01:03]} 45. Kd3 {[%emt 0:01:28]} Na7 {[%emt 0:01:31]} 46. Bd1 {[%emt 0:02:11]} Ke6 {[%emt 0:00:25]} 47. f4 {[%emt 0:01:57] [#] Black must now prevent g4.} Nab5 {[%emt 0:01:41]} 48. fxe5 {[%emt 0:00:34]} fxe5 {[%emt 0:01:36]} 49. g4 {[%emt 0:00:14]} hxg4 {[%emt 0:01:34]} 50. Bxg4+ {[%emt 0:00:10]} Kf6 {[%emt 0:00:05]} 51. h5 {[%emt 0:04:14]} gxh5 {[%emt 0:01:53] The position is equal.} (51... c5 {is more complex.} 52. h6 cxb4 53. Nxe5 b3) 52. Bxh5 {[%emt 0:00:08]} Ne6 {[%emt 0:01:34] [#] aiming for ...Nf4+.} 53. Be8 {[%emt 0:02:23]} Nbd4 {[%emt 0:00:22]} 54. Na5 {[%emt 0:00:29]} Nd8 {[%emt 0:02:08]} 55. Kc4 {[%emt 0:02:35]} Ke7 {[%emt 0:00:22]} 56. Bh5 {[%emt 0:09:26]} Kd6 {[%emt 0:03:38]} 57. Bd1 {[%emt 0:00:00]} N4e6 {[%emt 0:00:00]} 58. Bc2 {[%emt 0:00:00]} Nd4 {[%emt 0:00:00]} 59. Ba4 {[%emt 0:00:00]} N4e6 {[%emt 0:00:11]} 60. Kd3 {[%emt 0:00:00]} Nd4 {[%emt 0:00:32]} 61. Ke3 {[%emt 0:00:00]} Ke6 {[%emt 0:00:25]} 62. Bd1 {[%emt 0:00:00]} Kf6 {[%emt 0:01:14]} 63. Nc4 {[%emt 0:00:00]} N8e6 {[%emt 0:00:00]} 64. Ba4 {[%emt 0:00:00] An uneventful encounter.  Weighted Error Value: White=0.03 (flawless) /Black=0.02 (flawless)} 1/2-1/2